bitfinex/quotes_ETHUSD_20250807
["timestamp","ask_amount","ask_price","bid_price","bid_amount"]
[1754607287569,3.48604462,3920.4,3920.3,0.001]
[1754607287745,3.45416012,3920.4,3920.3,0.001]
[1754607288168,7.04487731,3920.6,3920.3,0.001]
[1754607288169,0.1272,3920.6,3920.3,0.001]
[1754607288369,2.55042134,3921.0,3920.3,0.1282]
[1754607288555,2.55042134,3921.0,3920.8,0.1272]
[1754607288755,2.55043484,3920.9,3920.8,0.1272]
[1754607288955,2.55057806,3920.7,3920.4,0.1272]
[1754607289277,2.55043484,3920.9,3920.8,0.1272]
[1754607289452,2.55069506,3920.5,3920.4,0.1272]
[1754607289642,2.55082136,3920.4,3920.3,0.1272]
[1754607289852,2.55063841,3920.6,3920.3,0.1272]
[1754607290055,2.55076012,3920.4,3920.3,0.1272]
[1754607290256,2.55090536,3920.2,3919.4,2.55138813]
[1754607290588,2.55090536,3920.2,3919.3,0.4582]
[1754607290589,2.55055048,3920.8,3919.9,2.55104959]
[1754607290775,2.55055048,3920.8,3920.0,2.55097669]
[1754607291102,0.25504348,3920.9,3919.8,0.9286]
[1754607291103,2.80548104,3920.9,3919.8,0.9286]
[1754607291259,2.55049989,3920.8,3919.8,0.9286]
[1754607291461,0.4558,3921.3,3920.8,0.1272]
[1754607291669,0.5748,3921.4,3920.7,0.1272]
[1754607291868,2.54926865,3922.7,3919.8,0.34798062]
[1754607291869,1.03860785,3923.3,3920.6,4.362]
[1754607292183,1.03860785,3923.3,3921.8,2.54984955]
[1754607292184,0.042,3921.9,3921.8,2.54984955]
[1754607292760,0.042,3921.9,3921.8,3.47844955]
[1754607292964,0.042,3921.9,3921.2,2.55018604]
[1754607293297,0.042,3921.9,3921.5,2.55000156]
[1754607293799,0.042,3921.9,3921.6,2.54997526]
[1754607293989,0.042,3921.9,3921.6,3.47857939]
[1754607294294,0.042,3921.9,3921.8,2.54984955]
[1754607294492,0.042,3921.9,3921.7,3.47851161]
[1754607294861,0.042,3921.9,3921.8,2.54984955]
[1754607295373,0.042,3921.9,3921.8,3.47844955]
[1754607295562,0.042,3921.9,3921.8,7.83344955]
[1754607296661,0.042,3921.9,3921.8,3.47844955]
[1754607296864,0.042,3921.9,3921.8,7.82944955]
[1754607297499,1e-08,3921.9,3921.8,7.82944955]
[1754607297680,1e-08,3921.9,3921.8,26.80323455]
[1754607297885,1e-08,3921.9,3921.8,10.82944955]
[1754607298086,1e-08,3921.9,3921.8,2.54984955]
[1754607298571,1e-08,3921.9,3921.8,3.47844955]
[1754607299170,1e-08,3921.9,3921.8,3.00804955]
[1754607299377,1e-08,3921.9,3921.8,2.54984955]
[1754607299806,1e-08,3921.9,3921.8,3.00804955]
[1754607300171,1e-08,3921.9,3920.9,0.4704]
[1754607300374,1e-08,3921.9,3921.6,2.54997686]
[1754607300575,1e-08,3921.9,3921.7,2.54989643]
[1754607300817,1e-08,3921.9,3921.8,2.54984955]
[1754607301625,1e-08,3921.9,3921.6,6.89592214]
[1754607301776,1e-08,3921.9,3920.9,0.9286]
[1754607301777,0.4558,3921.8,3920.9,0.9286]
[1754607301981,0.4558,3921.8,3921.6,2.54991605]
[1754607302277,1e-08,3921.9,3921.7,0.1272]
[1754607302476,0.4476,3921.8,3921.7,0.1272]
[1754607302794,2.99744955,3921.8,3921.7,0.1272]
[1754607303113,4.00797098,3921.8,3921.7,0.1272]
[1754607303319,4.00797098,3921.8,3920.2,4.34]
[1754607303320,2.55024199,3921.2,3920.4,2.55075231]
[1754607303480,0.9034,3921.1,3920.2,4.34]
[1754607303894,0.9034,3921.1,3920.4,2.5507022]
[1754607304098,0.4558,3921.7,3920.2,4.4333268]
[1754607304284,2.54984651,3921.9,3921.0,2.55031721]
[1754607304494,1e-08,3921.9,3921.1,2.55025725]
[1754607304724,1e-08,3921.9,3921.4,2.55005932]
[1754607304906,1e-08,3921.9,3920.6,0.9286]
[1754607305078,2.55020635,3921.3,3920.3,4.338]
[1754607305412,2.55020635,3921.3,3920.5,2.55063402]
[1754607305582,0.4558,3921.5,3920.3,4.7962]
[1754607305948,1e-08,3921.9,3920.4,0.9286]
[1754607306219,1e-08,3921.9,3921.5,2.54999695]
[1754607306382,1e-08,3921.9,3921.4,4.338]
[1754607306589,1e-08,3921.9,3921.8,2.54984955]
[1754607306988,0.002,3923.1,3922.6,2.54932952]
[1754607307185,0.002,3923.1,3922.6,6.89532952]
[1754607307524,1e-08,3923.1,3923.0,2.54906958]
[1754607307732,1.04076358,3925.1,3923.0,14.141645]
[1754607307883,1.04076358,3925.1,3923.1,0.9286]
[1754607308078,1.04076358,3925.1,3923.2,7.82748957]
[1754607308079,0.9034,3925.0,3923.2,7.82748957]
[1754607308301,2.54828856,3924.3,3923.3,2.54887399]
[1754607308621,2.54842671,3924.0,3923.1,4.351]
[1754607308861,0.4558,3924.2,3923.1,6.89998959]
[1754607308862,0.9034,3924.2,3923.1,6.89998959]
[1754607309137,0.9034,3924.2,3923.1,4.351]
[1754607309339,0.55,3924.6,3923.1,4.351]
[1754607309340,1.4534,3924.1,3923.1,4.35]
[1754607309515,2.54868718,3923.6,3922.8,4.35]
[1754607309844,0.55,3923.4,3921.6,0.4704]
[1754607310041,2.54926561,3922.7,3921.7,4.347]
[1754607310627,2.54933529,3922.6,3921.7,6.89689869]
[1754607310827,0.4558,3922.9,3921.7,4.347]
[1754607311028,0.4558,3922.9,3921.8,4.343]
[1754607311029,2.54940585,3922.5,3921.8,4.343]
[1754607311241,2.54940585,3922.5,3921.5,0.4582]
[1754607311242,0.55,3922.8,3921.5,0.4582]
[1754607311466,0.4558,3923.6,3921.6,7.34666428]
[1754607311613,2.54919828,3922.9,3921.7,2.54991457]
[1754607311816,2.54913667,3922.9,3921.8,2.54984955]
[1754607312014,2.99650434,3923.3,3921.9,0.9286]
[1754607312227,2.54913442,3923.0,3922.0,2.54965903]
[1754607312450,2.54927471,3922.7,3922.1,4.37]
[1754607312717,0.48766418,3922.9,3921.4,0.9286]
[1754607312936,0.9976,3922.8,3921.5,4.369]
[1754607313243,3.005079,3922.7,3922.5,0.1272]
[1754607313434,0.4558,3922.7,3922.5,0.1272]
[1754607313618,2.54916675,3922.9,3922.6,0.1272]
[1754607313819,2.54919978,3922.8,3922.6,0.1272]
[1754607314020,0.4908,3922.8,3922.6,0.1272]
[1754607314711,2.54926453,3922.7,3922.6,0.1272]
[1754607314911,0.1272,3923.2,3922.6,0.1272]
[1754607315111,2.54870939,3923.6,3922.6,4.366]
[1754607315337,2.54870939,3923.6,3922.8,2.549196]
[1754607315538,2.54874565,3923.5,3922.7,2.54925972]
[1754607315741,2.54887467,3923.3,3922.3,4.368]
[1754607315942,0.55,3923.1,3920.9,0.001]
[1754607316142,0.965,3923.2,3921.0,0.456]
[1754607316355,2.54936111,3922.6,3921.7,2.54985951]
[1754607316518,1.25180354,3922.5,3920.9,0.001]
[1754607316724,0.4908,3923.0,3921.1,2.55030476]
[1754607317051,0.4908,3923.0,3921.2,0.9197]
[1754607317230,0.4908,3923.5,3921.3,3.9197]
[1754607317550,4.374,3924.2,3922.1,3.0]
[1754607317551,0.4742,3924.2,3922.1,3.0]
[1754607317756,0.004,3925.1,3924.2,2.54827025]
[1754607317757,2.54780348,3925.0,3924.2,2.54827025]
[1754607317939,0.004,3925.1,3922.3,3.0]
[1754607317940,2.80307211,3924.9,3924.1,2.54834855]
[1754607318138,2.80307211,3924.9,3923.3,0.9197]
[1754607318139,2.54791401,3924.8,3924.0,2.54841552]
[1754607318448,0.25518035,3924.9,3924.2,2.54826567]
[1754607318648,0.4948,3925.1,3924.2,2.54826567]
[1754607318850,3.04251555,3925.1,3923.7,4.374]
[1754607319053,0.4948,3925.1,3923.8,2.54854987]
[1754607319240,2.54783561,3924.9,3923.5,4.371]
[1754607319444,2.54790885,3924.8,3923.9,2.54842515]
[1754607319757,2.54803515,3924.6,3923.8,2.54853554]
[1754607319966,0.4908,3924.5,3923.3,4.368]
[1754607320171,3.03890534,3924.5,3923.7,2.54860575]
[1754607320378,2.54790099,3924.8,3923.3,4.824]
[1754607320653,1.0408,3925.0,3923.3,4.824]
[1754607320654,2.54797893,3924.7,3923.9,2.54842655]
[1754607320852,2.54783561,3924.9,3924.0,2.54840535]
[1754607321057,0.4908,3925.0,3923.8,0.9197]
[1754607321268,0.004,3925.1,3924.5,2.54806042]
[1754607321758,0.004,3925.1,3924.2,0.456]
[1754607322067,0.004,3925.1,3924.2,0.9197]
[1754607322238,0.004,3925.1,3924.7,2.54791443]
[1754607322433,0.004,3925.1,3924.2,0.9197]
[1754607322657,0.004,3925.1,3924.1,6.91429301]
[1754607322658,0.004,3925.1,3925.0,2.5477707]
[1754607323041,0.004,3925.1,3924.8,2.54789144]
[1754607323240,0.004,3925.1,3924.3,0.87524202]
[1754607323437,0.004,3925.1,3924.4,4.358]
[1754607323784,0.004,3925.1,3924.5,4.358]
[1754607324591,0.004,3925.1,3924.5,6.90609394]
[1754607324754,0.004,3925.1,3924.5,4.358]
[1754607324950,0.004,3925.1,3924.6,0.4637]
[1754607325152,0.004,3925.1,3925.0,0.1272]
[1754607325385,0.004,3925.1,3925.0,2.6749707]
[1754607325598,0.004,3925.1,3925.0,3.5946707]
[1754607325773,0.004,3925.1,3925.0,0.1272]
[1754607326765,0.004,3925.1,3925.0,2.6749707]
[1754607327286,0.004,3925.1,3925.0,0.1272]
[1754607327508,0.004,3925.1,3925.0,2.6749707]
[1754607327787,2.54778944,3925.0,3924.2,2.54824872]
[1754607327962,0.4948,3925.1,3925.0,0.1272]
[1754607328162,0.004,3925.1,3925.0,6.8937707]
[1754607328382,1e-08,3925.1,3925.0,11.8566247]
[1754607328666,0.002,3925.6,3925.5,2.54744618]
[1754607328863,0.002,3925.6,3925.5,2.67464618]
[1754607329064,0.002,3925.6,3925.5,3.59434618]
[1754607329269,0.002,3925.6,3925.5,3.46714618]
[1754607329486,0.002,3925.6,3925.5,3.59434618]
[1754607329687,0.002,3925.6,3925.5,7.94234618]
[1754607330658,0.002,3925.6,3925.5,7.02064618]
[1754607330859,0.002,3925.6,3925.5,3.13834618]
[1754607331212,0.48213,3927.0,3925.5,3.13834618]
[1754607331213,0.00793,3927.0,3926.9,2.54653798]
[1754607331435,0.00793,3927.0,3926.9,7.84623798]
[1754607331747,0.00793,3927.0,3926.9,7.05373798]
[1754607331953,0.00793,3927.0,3926.9,7.97343798]
[1754607332304,0.00793,3927.0,3925.8,4.835]
[1754607332612,0.00793,3927.0,3926.9,2.54653798]
[1754607332810,0.00793,3927.0,3926.9,6.93353798]
[1754607333033,0.00793,3927.0,3926.9,7.85323798]
[1754607333413,0.00793,3927.0,3926.9,2.54653798]
[1754607333614,0.00793,3927.0,3926.9,4.389]
[1754607334416,0.00793,3927.0,3926.9,4.39]
[1754607334902,0.00793,3927.0,3926.9,4.388]
[1754607335421,0.00793,3927.0,3926.9,6.93453798]
[1754607335936,0.00793,3927.0,3926.4,0.4637]
[1754607336118,0.00793,3927.0,3926.9,2.54653798]
[1754607336319,0.00793,3927.0,3926.9,6.92853798]
[1754607336517,0.4908,3929.2,3927.0,12.690698]
[1754607336719,0.4908,3929.2,3926.9,5.3017]
[1754607336720,0.4908,3929.2,3927.3,3.0]
[1754607336949,0.4908,3929.2,3928.3,2.54556588]
[1754607337285,0.4908,3929.9,3928.3,4.383]
[1754607337558,0.4908,3929.9,3929.1,2.54508429]
[1754607337559,3.03542973,3929.9,3929.1,2.54508429]
[1754607337724,3.03542973,3929.9,3928.2,0.456]
[1754607337725,45.10498389,3930.0,3929.2,4.381]
[1754607338066,45.10498389,3930.0,3929.3,5.3007]
[1754607338248,45.10498389,3930.0,3929.4,4.383]
[1754607338803,32.56429368,3930.0,3929.9,2.54459401]
[1754607339052,32.56429368,3930.0,3929.9,4.393]
[1754607339259,32.56429368,3930.0,3929.9,6.93759401]
[1754607339456,32.56429368,3930.0,3929.7,2.54469654]
[1754607339457,32.56429368,3930.0,3929.7,4.412]
[1754607339622,0.965,3929.9,3929.7,4.412]
[1754607339825,32.56429368,3930.0,3929.7,4.412]
[1754607340148,0.4742,3929.9,3929.6,4.415]
[1754607340478,32.56429368,3930.0,3929.3,4.415]
[1754607340821,32.56429368,3930.0,3928.1,8.75065552]
[1754607341022,3.03543459,3929.9,3928.3,2.54563042]
[1754607341270,3.03543459,3929.9,3927.9,6.117]
[1754607341271,0.4908,3929.8,3928.4,4.418]
[1754607341473,0.4908,3929.8,3928.5,4.418]
[1754607341474,0.965,3929.8,3928.5,4.418]
[1754607341625,0.965,3929.8,3928.2,2.54569257]
[1754607341626,3.55209913,3929.7,3928.4,4.418]
[1754607341825,3.55209913,3929.7,3927.9,8.66288087]
[1754607341826,0.55,3929.5,3927.9,6.117]
[1754607342129,0.965,3929.4,3928.5,2.54546075]
[1754607342446,0.965,3929.4,3928.6,4.419]
[1754607342638,3.50991779,3929.4,3929.3,0.1272]
[1754607342823,1.57152079,3929.4,3929.3,0.1272]
[1754607343026,4.11643858,3929.4,3929.3,0.1272]
[1754607343532,1.57152079,3929.4,3928.2,4.416]
[1754607343743,0.9284,3929.3,3929.2,0.1272]
[1754607343950,2.54530858,3928.8,3927.9,8.66288377]
[1754607344130,0.9284,3928.7,3927.9,10.53]
[1754607344330,0.96021795,3928.6,3926.4,6.114]
[1754607344526,2.54562734,3928.4,3926.6,2.54673254]
[1754607344754,2.54570053,3928.2,3927.2,2.54628887]
[1754607344926,2.54570053,3928.2,3926.4,9.114]
[1754607344927,0.9284,3928.3,3927.5,2.54612442]
[1754607345128,3.47403042,3928.3,3928.2,0.1272]
[1754607345435,3.82142785,3928.3,3928.2,0.1272]
[1754607346328,1.27579743,3928.3,3928.2,0.1272]
[1754607346524,0.15349208,3929.2,3928.2,0.1272]
[1754607346738,0.9284,3929.1,3928.2,0.1272]
[1754607346950,2.54526599,3928.9,3928.0,2.54580539]
[1754607347159,14.5,3929.1,3927.4,2.54618831]
[1754607347343,2.54537124,3928.7,3928.6,0.1272]
[1754607347661,0.9284,3928.8,3928.6,0.1272]
[1754607347827,3.47377124,3928.7,3928.6,0.1272]
[1754607348027,0.9284,3928.7,3928.6,0.1272]
[1754607348372,0.461,3928.7,3928.6,0.1272]
[1754607348867,0.9284,3929.2,3928.6,0.1272]
[1754607349062,0.461,3928.7,3928.6,0.1272]
[1754607349263,0.9284,3929.7,3927.9,4.4]
[1754607349460,32.56429368,3930.0,3928.1,2.54576003]
[1754607349663,32.56429368,3930.0,3929.9,0.1272]
[1754607349963,32.56429368,3930.0,3929.3,4.402]
[1754607350258,32.56429368,3930.0,3929.9,0.1272]
[1754607350560,32.56429368,3930.0,3929.9,2.67179401]
[1754607350763,32.56429368,3930.0,3929.9,0.1272]
[1754607350965,33.49269368,3930.0,3929.1,4.402]
[1754607351260,33.49269368,3930.0,3929.3,2.54493403]
[1754607351430,33.49269368,3930.0,3929.1,6.94710855]
[1754607351630,33.49269368,3930.0,3914.9,0.071]
[1754607351631,1.51020742,3929.9,3927.0,2.54643692]
[1754607351930,2.54523186,3929.0,3928.2,2.54564199]
[1754607352131,0.461,3929.2,3927.9,4.403]
[1754607352331,0.4674,3929.1,3926.7,2.54666768]
[1754607352535,2.5456157,3928.4,3927.6,2.5460797]
[1754607352773,2.54575877,3928.2,3927.3,2.54622623]
[1754607352942,0.9284,3928.3,3926.9,0.19555854]
[1754607352943,3.4740364,3928.3,3927.2,2.54632878]
[1754607353262,3.47405566,3928.3,3927.4,2.54616573]
[1754607353461,2.54572705,3928.2,3927.3,2.54626343]
[1754607353664,2.54572705,3928.2,3927.4,2.54620935]
[1754607353962,0.9284,3928.3,3927.6,2.54607778]
[1754607354133,0.9284,3928.3,3927.4,2.54616483]
[1754607354460,0.9284,3928.3,3927.7,2.54600172]
[1754607354626,2.54522923,3929.0,3927.4,0.25679946]
[1754607354831,0.461,3928.6,3927.0,2.54647313]
[1754607355027,3.00645152,3928.6,3926.8,4.401]
[1754607355430,3.00645152,3928.6,3927.9,2.54587551]
[1754607355631,0.461,3928.6,3927.6,4.392]
[1754607355839,0.461,3928.6,3927.8,2.54595447]
[1754607356055,0.461,3928.6,3928.2,2.54567771]
[1754607356260,0.461,3928.6,3927.9,2.54588966]
[1754607356438,0.461,3928.6,3928.0,2.54582484]
[1754607356840,0.461,3928.6,3928.2,2.54568254]
[1754607357061,0.461,3928.6,3928.1,2.54574897]
[1754607357270,0.4674,3929.4,3928.1,0.32688]
[1754607357437,0.461,3929.3,3928.1,0.32688]
[1754607357760,2.54504733,3929.2,3928.2,2.54569291]
[1754607357976,0.461,3929.3,3928.1,0.32688]
[1754607358180,2.54479294,3929.6,3928.2,0.4392]
[1754607358479,32.56429368,3930.0,3928.4,3.0]
[1754607358668,32.56429368,3930.0,3928.7,2.54532375]
[1754607358965,32.56429368,3930.0,3929.5,2.54481887]
[1754607359265,2.54465876,3929.8,3928.8,2.54524865]
[1754607359437,0.9284,3929.7,3928.2,0.4392]
[1754607359637,0.461,3929.6,3928.3,4.397]
[1754607359944,0.461,3929.6,3928.6,2.54542269]
[1754607359945,3.00580313,3929.6,3928.6,2.54542269]
[1754607360152,2.5449623,3929.4,3928.4,4.398]
[1754607360349,32.56429368,3930.0,3924.7,2.30459245]
[1754607360350,0.461,3929.3,3928.3,2.54557434]
[1754607360549,2.54529035,3928.9,3928.3,4.395]
[1754607360751,0.9284,3928.8,3928.3,4.395]
[1754607360951,0.9284,3928.8,3928.3,6.94061915]
[1754607361134,0.461,3928.7,3928.3,4.395]
[1754607361455,0.9284,3928.6,3927.4,0.001]
[1754607361633,0.9284,3928.6,3927.5,4.395]
[1754607361634,0.461,3928.6,3927.5,4.395]
[1754607361835,0.461,3929.2,3927.5,4.395]
[1754607362064,2.54472021,3929.8,3927.7,8.75065552]
[1754607362268,0.461,3929.3,3928.3,2.54557778]
[1754607362475,2.54513126,3929.1,3928.1,2.54575447]
[1754607362640,0.461,3929.3,3928.4,2.54550575]
[1754607362835,0.461,3929.3,3929.0,0.1272]
[1754607363049,0.461,3929.3,3929.2,0.1272]
[1754607363250,3.00598256,3929.3,3929.2,0.1272]
[1754607363437,2.54517688,3929.0,3927.2,2.54633482]
[1754607363637,0.55,3929.1,3926.6,6.113]
[1754607363638,0.55,3928.9,3926.6,6.113]
[1754607363970,2.54556562,3928.4,3928.3,0.1272]
[1754607364169,4.02396562,3928.4,3928.3,0.1272]
[1754607364469,4.02396562,3928.4,3927.1,4.392]
[1754607364470,0.9284,3928.4,3927.1,4.392]
[1754607364648,1.4784,3928.3,3928.2,0.1272]
[1754607364852,2.54614894,3927.5,3926.2,0.001]
[1754607365047,2.54614894,3927.5,3927.3,0.1282]
[1754607365048,2.54621378,3927.4,3927.3,0.1282]
[1754607365247,4.02461378,3927.4,3927.3,0.1282]
[1754607365443,1.58547627,3927.4,3926.2,0.001]
[1754607365644,2.54653798,3926.9,3926.8,0.1272]
[1754607365875,3.00753798,3926.9,3926.8,0.1272]
[1754607366174,4.02493798,3926.9,3926.8,0.1272]
[1754607366348,2.54692713,3926.3,3926.2,0.001]
[1754607366756,3.47500283,3926.8,3926.2,0.001]
[1754607366757,2.54660283,3926.8,3926.2,0.001]
[1754607366951,0.55,3926.9,3926.2,0.001]
[1754607366952,0.461,3926.9,3926.2,0.001]
[1754607367162,0.4674,3927.0,3926.2,0.001]
[1754607367163,2.54692713,3926.3,3926.2,0.001]
[1754607367369,0.9284,3926.7,3926.2,0.001]
[1754607367370,0.55,3926.6,3926.2,0.001]
[1754607367698,0.461,3926.7,3926.2,0.001]
[1754607367984,0.9284,3927.2,3927.0,2.54641987]
[1754607368285,0.55,3927.7,3926.3,2.54692713]
[1754607368286,2.54601929,3927.7,3926.3,2.54692713]
[1754607368440,2.54653828,3926.9,3926.2,0.25581104]
[1754607368640,0.461,3926.8,3926.2,0.25581104]
[1754607368922,0.461,3926.8,3926.2,0.001]
[1754607369045,0.55,3926.7,3926.2,0.001]
[1754607369251,1.0174,3926.7,3926.2,0.001]
[1754607369454,0.55,3927.1,3926.2,0.001]
[1754607369769,2.54685168,3926.5,3926.2,0.001]
[1754607369940,0.55,3927.2,3926.2,0.001]
[1754607370140,0.55,3927.0,3926.2,2.54795393]
[1754607370341,0.55,3927.3,3926.2,0.001]
[1754607370684,0.9284,3926.9,3926.2,0.001]
[1754607371475,2.54673254,3926.6,3926.2,0.001]
[1754607371674,2.54685566,3926.5,3926.2,0.001]
[1754607371881,3.47525566,3926.5,3926.2,0.001]
[1754607372097,2.54692713,3926.3,3926.2,0.001]
[1754607372448,3.47532713,3926.3,3926.2,0.001]
[1754607372691,0.9284,3926.3,3926.2,0.001]
[1754607373081,3.47532713,3926.3,3926.2,0.001]
[1754607374886,0.9284,3926.3,3926.2,0.001]
[1754607375652,3.47532713,3926.3,3926.2,0.001]
[1754607375856,4.62753998,3926.3,3926.2,0.001]
[1754607376153,4.02532713,3926.3,3926.2,0.001]
[1754607376774,4.05716371,3926.3,3926.2,0.001]
[1754607376978,4.02532713,3926.3,3926.2,0.001]
[1754607377322,3.09738129,3925.6,3925.5,0.001]
[1754607377479,7.46038129,3925.6,3925.5,0.001]
[1754607377806,8.39628129,3925.6,3925.5,0.001]
[1754607378685,4.03328129,3925.6,3925.5,0.001]
[1754607378916,8.39528129,3925.6,3925.5,0.001]
[1754607379820,9.48953907,3925.6,3925.5,0.001]
[1754607380171,3.09764088,3925.2,3925.1,0.001]
[1754607380417,7.45264088,3925.2,3925.1,0.001]
[1754607380771,8.38854088,3925.2,3925.1,0.001]
[1754607381406,4.03354088,3925.2,3925.1,0.001]
[1754607381675,8.38954088,3925.2,3925.1,0.001]
[1754607381876,0.4819,3925.7,3925.1,0.001]
[1754607382077,2.54730315,3925.8,3925.1,0.001]
[1754607382379,6.8991977,3925.9,3925.2,0.25487191]
[1754607382721,0.4819,3927.0,3925.8,0.1272]
[1754607383229,3.00056781,3926.9,3925.2,0.25487191]
[1754607383378,4.9661,3926.8,3926.2,0.1272]
[1754607383573,0.454,3927.7,3926.7,0.1272]
[1754607383817,4.81,3927.7,3925.9,2.54718663]
[1754607384010,2.54608412,3927.6,3927.5,0.1272]
[1754607384178,2.54665274,3926.8,3925.5,4.742]
[1754607384500,2.54647313,3927.0,3926.9,0.1272]
[1754607384828,0.1272,3927.4,3926.7,0.1272]
[1754607384993,0.454,3927.7,3926.6,2.54667564]
[1754607385334,0.9359,3927.6,3927.3,0.1272]
[1754607385510,2.54652624,3927.0,3925.7,0.2556]
[1754607385816,2.54651127,3927.0,3926.1,2.54704655]
[1754607386014,2.54642131,3927.1,3925.7,0.2556]
[1754607386226,2.54648558,3927.0,3926.1,2.54699496]
[1754607386378,0.4819,3927.2,3925.7,0.2556]
[1754607386572,2.54640829,3927.1,3926.1,2.54700191]
[1754607386778,2.54640829,3927.1,3927.0,0.1272]
[1754607387022,3.02830829,3927.1,3927.0,0.1272]
[1754607387829,3.48230829,3927.1,3927.0,0.1272]
[1754607388038,2.54647868,3927.0,3925.7,2.80290586]
[1754607388192,2.54647313,3927.0,3926.9,0.1272]
[1754607388393,2.54647313,3927.0,3924.4,5.54813558]
[1754607388394,2.54690053,3926.4,3924.4,5.54813558]
[1754607388626,0.4819,3926.9,3925.2,0.5112]
[1754607388828,2.54660283,3926.8,3926.3,0.1272]
[1754607389007,2.54678054,3926.6,3925.3,0.2556]
[1754607389218,3.02858455,3926.7,3926.5,0.1272]
[1754607389419,0.9359,3926.6,3925.3,0.2556]
[1754607389619,2.54684869,3926.5,3926.4,0.1272]
[1754607389824,2.5467974,3926.5,3926.4,0.1272]
[1754607390692,3.4826974,3926.5,3926.4,0.1272]
[1754607390920,3.4826974,3926.5,3926.4,0.12665902]
[1754607390921,3.0286974,3926.5,3926.4,0.12665902]
[1754607391297,4.0326974,3926.5,3926.4,0.12665902]
[1754607391618,0.9359,3926.5,3925.1,0.001]
[1754607391805,4.8259,3927.1,3926.4,0.1272]
[1754607392332,0.4819,3927.1,3926.4,0.1272]
[1754607392537,0.4819,3927.1,3925.8,0.2556]
[1754607392691,2.54686342,3926.4,3925.2,0.71636]
[1754607392894,0.454,3927.0,3926.9,0.1272]
[1754607393091,2.54647313,3927.0,3926.9,0.1272]
[1754607393735,3.02837313,3927.0,3926.9,0.1272]
[1754607394031,4.03237313,3927.0,3926.9,0.1272]
[1754607394337,0.55,3926.9,3925.2,0.19141227]
[1754607394536,2.54666768,3926.7,3926.6,0.1272]
[1754607394705,0.55,3926.9,3925.8,2.52443587]
[1754607394912,2.54673254,3926.6,3926.5,0.1272]
[1754607395518,3.02863254,3926.6,3926.5,0.1272]
[1754607395837,2.54673254,3926.6,3926.5,0.1272]
[1754607396007,3.02863254,3926.6,3926.5,0.1272]
[1754607396637,2.54673254,3926.6,3926.5,0.1272]
[1754607398033,3.02863254,3926.6,3926.5,0.1272]
[1754607398643,7.82663254,3926.6,3926.5,0.1272]
[1754607401242,2.5471084,3926.1,3925.4,2.54749694]
[1754607401411,2.54699843,3926.2,3925.5,3.32475898]
[1754607401755,2.54699843,3926.2,3926.0,0.1272]
[1754607401911,2.54705687,3926.1,3926.0,0.1272]
[1754607402254,0.4819,3926.5,3926.0,0.1272]
[1754607402420,2.54690915,3926.4,3926.0,0.1272]
[1754607402624,2.54690915,3926.4,3926.3,0.1272]
[1754607402814,4.344,3926.6,3926.3,0.1272]
[1754607403012,2.54679067,3926.6,3926.3,0.1272]
[1754607403238,2.54668114,3926.7,3926.5,0.1272]
[1754607403711,7.37145401,3926.9,3926.5,0.1272]
[1754607403712,2.54660283,3926.8,3926.5,0.1272]
[1754607403907,3.02843854,3926.9,3926.5,0.1272]
[1754607403908,2.54667946,3926.7,3926.5,0.1272]
[1754607404143,3.02845966,3926.9,3926.5,0.1272]
[1754607404455,0.1272,3927.3,3926.5,0.1272]
[1754607404615,0.4525,3927.6,3926.3,0.2556]
[1754607404813,2.54827348,3927.4,3927.2,0.1272]
[1754607405532,2.54627861,3927.3,3927.2,0.1272]
[1754607405733,2.9955223,3927.3,3927.2,0.1272]
[1754607405925,2.5430223,3927.3,3927.2,0.1272]
[1754607406310,2.9955223,3927.3,3927.2,0.1272]
[1754607406509,3.75547453,3927.3,3927.2,0.1272]
[1754607406735,2.54703719,3926.2,3925.4,0.001]
[1754607407043,2.546992,3926.2,3926.1,0.1272]
[1754607407412,3.459692,3926.2,3926.1,0.1272]
[1754607407642,2.54734665,3925.7,3925.4,0.001]
[1754607407944,2.54738945,3925.6,3925.4,0.001]
[1754607408332,2.99994618,3925.5,3925.4,0.001]
[1754607408649,3.46014618,3925.5,3925.4,0.1282]
[1754607408944,0.4525,3925.5,3925.4,0.1282]
[1754607409246,2.99975025,3925.9,3925.4,0.1282]
[1754607409452,2.54736869,3925.7,3925.4,0.1282]
[1754607409629,2.54736869,3925.7,3925.6,0.1272]
[1754607410257,0.4525,3925.7,3925.6,0.1272]
[1754607410661,2.9998164,3925.7,3925.6,0.1272]
[1754607410845,3.4600164,3925.7,3925.6,0.1272]
[1754607411046,2.54744618,3925.5,3925.4,0.1282]
[1754607411461,3.46014618,3925.5,3925.4,0.1282]
[1754607412457,4.342,3925.7,3925.4,0.1282]
[1754607412621,6.88932918,3925.7,3925.4,0.1282]
[1754607412820,4.342,3925.7,3925.6,0.1272]
[1754607413120,7.3418164,3925.7,3925.6,0.1272]
[1754607413952,4.342,3925.7,3925.6,0.1272]
[1754607414157,0.4525,3926.2,3925.6,0.1272]
[1754607414331,2.99949502,3926.2,3925.6,0.1272]
[1754607414653,2.99949502,3926.2,3925.4,0.001]
[1754607414654,2.54710326,3926.1,3925.4,0.001]
[1754607414951,2.54710326,3926.1,3926.0,0.1272]
[1754607415156,0.4525,3926.1,3926.0,0.1272]
[1754607415356,2.99955687,3926.1,3926.0,0.1272]
[1754607415648,0.4525,3926.1,3926.0,0.1272]
[1754607416149,3.45975687,3926.1,3926.0,0.1272]
[1754607416354,4.7935,3926.5,3926.0,0.1272]
[1754607416549,2.54695,3926.3,3926.0,0.1272]
[1754607416719,2.54692713,3926.3,3925.4,0.001]
[1754607416920,6.88781506,3926.5,3926.2,0.1272]
[1754607417116,7.34031506,3926.5,3926.4,0.1272]
[1754607417315,4.7935,3926.5,3926.4,0.1272]